[Event "Titled Tuesday Blitz April 11 Early 2023"]
[White "Chabris, Christopher"]
[Black "Bas Mas, Jose Joaquin"]
[WhiteFideId "2005263"]
[BlackFideId "22219064"]
[WhiteElo "2285"]
[BlackElo "2233"]
[Result "0-1"]
[Round "09"]
[TimeControl "180+2"]
[Date "2023.04.11"]
[WhiteClock "0:00:02"]
[BlackClock "0:01:01"]

1. e4 {[%clk 0:02:59]}  e6 {[%clk 0:03:00]} 2. d4 {[%clk 0:02:59]}  d5 {[%clk 0:03:00]} 3. Nc3 {[%clk 0:02:59]}  Nf6 {[%clk 0:03:00]} 4. e5 {[%clk 0:02:59]}  Nfd7 {[%clk 0:03:00]} 5. f4 {[%clk 0:02:59]}  c5 {[%clk 0:03:01]} 6. Nf3 {[%clk 0:03:00]}  Nc6 {[%clk 0:03:02]} 7. Be3 {[%clk 0:03:00]}  Be7 {[%clk 0:03:02]} 8. Be2 {[%clk 0:02:58]}  O-O {[%clk 0:03:02]} 9. O-O {[%clk 0:02:58]}  a6 {[%clk 0:03:02]} 10. Qd2 {[%clk 0:02:53]}  b5 {[%clk 0:03:02]} 11. a3 {[%clk 0:02:48]}  Qc7 {[%clk 0:03:02]} 12. Nd1 {[%clk 0:02:48]}  f6 {[%clk 0:02:53]} 13. c3 {[%clk 0:02:32]}  cxd4 {[%clk 0:02:42]} 14. cxd4 {[%clk 0:02:22]}  Nb6 {[%clk 0:02:36]} 15. b3 {[%clk 0:02:15]}  Bd7 {[%clk 0:02:35]} 16. Nb2 {[%clk 0:02:05]}  Rac8 {[%clk 0:02:31]} 17. Nd3 {[%clk 0:02:03]}  Be8 {[%clk 0:02:32]} 18. Rfc1 {[%clk 0:01:57]}  Bh5 {[%clk 0:02:20]} 19. Nc5 {[%clk 0:01:50]}  Bxc5 {[%clk 0:02:14]} 20. Rxc5 {[%clk 0:01:46]}  Nd7 {[%clk 0:02:11]} 21. Rc2 {[%clk 0:01:34]}  Qb6 {[%clk 0:02:02]} 22. h3 {[%clk 0:01:25]}  Bxf3 {[%clk 0:01:47]} 23. Bxf3 {[%clk 0:01:18]}  Na5 {[%clk 0:01:31]} 24. Qd3 {[%clk 0:00:50]}  Rxc2 {[%clk 0:01:29]} 25. Qxc2 {[%clk 0:00:49]}  fxe5 {[%clk 0:01:30]} 26. fxe5 {[%clk 0:00:16]}  Nxe5 {[%clk 0:01:29]} 27. Be2 {[%clk 0:00:11]}  Nac6 {[%clk 0:01:19]} 28. Qd2 {[%clk 0:00:07]}  Ng6 {[%clk 0:01:19]} 29. Rc1 {[%clk 0:00:05]}  Nce7 {[%clk 0:01:17]} 30. Bd3 {[%clk 0:00:04]}  Nf5 {[%clk 0:01:17]} 31. Bf2 {[%clk 0:00:04]}  Qd6 {[%clk 0:01:10]} 32. Qg5 {[%clk 0:00:01]}  Qf4 {[%clk 0:01:00]} 33. Qxf4 {[%clk 0:00:02]}  Nxf4 {[%clk 0:01:01]} 0-1


[Site "https://www.chess.com"]

[Event "Titled Tuesday Blitz April 11 Early 2023"]
[White "lluiss"]
[Black "Gracia Alvarez, Gerardo Antonio"]
[BlackFideId "5109124"]
[WhiteElo "2271"]
[BlackElo "2160"]
[Result "0-1"]
[Round "09"]
[TimeControl "180+2"]
[Date "2023.04.11"]
[WhiteClock "0:00:03"]
[BlackClock "0:01:07"]

1. c4 {[%clk 0:03:00]}  e5 {[%clk 0:02:57]} 2. Nc3 {[%clk 0:03:00]}  Nf6 {[%clk 0:02:57]} 3. Nf3 {[%clk 0:02:58]}  e4 {[%clk 0:02:56]} 4. Ng5 {[%clk 0:02:57]}  c6 {[%clk 0:02:55]} 5. Ngxe4 {[%clk 0:02:54]}  Nxe4 {[%clk 0:02:54]} 6. Nxe4 {[%clk 0:02:53]}  d5 {[%clk 0:02:55]} 7. cxd5 {[%clk 0:02:49]}  cxd5 {[%clk 0:02:56]} 8. Nc3 {[%clk 0:02:30]}  d4 {[%clk 0:02:54]} 9. Ne4 {[%clk 0:02:29]}  Be6 {[%clk 0:02:48]} 10. d3 {[%clk 0:02:24]}  Bb4+ {[%clk 0:02:39]} 11. Bd2 {[%clk 0:02:24]}  Be7 {[%clk 0:02:40]} 12. Qa4+ {[%clk 0:02:01]}  Nc6 {[%clk 0:02:38]} 13. Rc1 {[%clk 0:01:44]}  O-O {[%clk 0:02:37]} 14. h4 {[%clk 0:01:41]}  h6 {[%clk 0:02:34]} 15. Nc5 {[%clk 0:01:26]}  Bd5 {[%clk 0:02:21]} 16. b4 {[%clk 0:00:54]}  Ne5 {[%clk 0:02:19]} 17. Ne4 {[%clk 0:00:36]}  f5 {[%clk 0:01:59]} 18. Nc5 {[%clk 0:00:32]}  Bd6 {[%clk 0:01:36]} 19. b5 {[%clk 0:00:26]}  Qf6 {[%clk 0:01:29]} 20. Nb3 {[%clk 0:00:20]}  Rfe8 {[%clk 0:01:28]} 21. Qxd4 {[%clk 0:00:16]}  Bxb3 {[%clk 0:01:26]} 22. Bc3 {[%clk 0:00:06]}  Bxa2 {[%clk 0:01:15]} 23. f4 {[%clk 0:00:06]}  Ng4 {[%clk 0:01:12]} 24. Qxf6 {[%clk 0:00:05]}  Nxf6 {[%clk 0:01:11]} 25. Bxf6 {[%clk 0:00:03]}  gxf6 {[%clk 0:01:11]} 26. Kd2 {[%clk 0:00:03]}  Bb4+ {[%clk 0:01:08]} 27. Kd1 {[%clk 0:00:03]}  Bb3+ {[%clk 0:01:07]} 0-1


[Site "https://www.chess.com"]

[Event "Titled Tuesday Blitz April 11 Early 2023"]
[White "FuenfgegenWilly"]
[Black "Kabilov, Amin"]
[BlackFideId "14700859"]
[WhiteElo "2252"]
[BlackElo "2110"]
[Result "0-1"]
[Round "09"]
[TimeControl "180+2"]
[Date "2023.04.11"]
[WhiteClock "0:01:00"]
[BlackClock "0:00:42"]

1. Nf3 {[%clk 0:02:58]}  Nf6 {[%clk 0:02:58]} 2. e3 {[%clk 0:02:57]}  g6 {[%clk 0:02:58]} 3. b3 {[%clk 0:02:57]}  Bg7 {[%clk 0:02:58]} 4. Bb2 {[%clk 0:02:58]}  O-O {[%clk 0:02:59]} 5. c4 {[%clk 0:02:58]}  c5 {[%clk 0:02:59]} 6. g3 {[%clk 0:02:58]}  b6 {[%clk 0:02:58]} 7. Bg2 {[%clk 0:02:55]}  Bb7 {[%clk 0:02:58]} 8. O-O {[%clk 0:02:56]}  d5 {[%clk 0:02:58]} 9. cxd5 {[%clk 0:02:56]}  Nxd5 {[%clk 0:02:56]} 10. Bxg7 {[%clk 0:02:56]}  Kxg7 {[%clk 0:02:56]} 11. d4 {[%clk 0:02:46]}  Nd7 {[%clk 0:02:40]} 12. Qc1 {[%clk 0:02:29]}  cxd4 {[%clk 0:02:35]} 13. Nxd4 {[%clk 0:02:25]}  Rc8 {[%clk 0:02:34]} 14. Qb2 {[%clk 0:02:26]}  N7f6 {[%clk 0:02:32]} 15. Na3 {[%clk 0:02:23]}  Qd7 {[%clk 0:02:21]} 16. Rfd1 {[%clk 0:02:20]}  Nc3 {[%clk 0:02:06]} 17. Rdc1 {[%clk 0:01:36]}  Bxg2 {[%clk 0:02:03]} 18. Kxg2 {[%clk 0:01:37]}  Qb7+ {[%clk 0:01:42]} 19. Kg1 {[%clk 0:01:35]}  Nce4 {[%clk 0:01:01]} 20. Nc4 {[%clk 0:01:28]}  Ng5 {[%clk 0:00:57]} 21. h4 {[%clk 0:01:23]}  Nh3+ {[%clk 0:00:44]} 22. Kh2 {[%clk 0:01:20]}  Nxf2 {[%clk 0:00:44]} 23. Rf1 {[%clk 0:01:00]}  N6g4+ {[%clk 0:00:42]} 0-1


[Site "https://www.chess.com"]

[Event "Titled Tuesday Blitz April 11 Early 2023"]
[White "Dylag, Emilia"]
[Black "Marcziter, Dmitrii"]
[WhiteFideId "21805172"]
[BlackFideId "13900765"]
[WhiteElo "1878"]
[BlackElo "2162"]
[Result "0-1"]
[Round "09"]
[TimeControl "180+2"]
[Date "2023.04.11"]
[WhiteClock "0:01:10"]
[BlackClock "0:00:37"]

1. d4 {[%clk 0:03:00]}  Nf6 {[%clk 0:02:59]} 2. c4 {[%clk 0:02:59]}  g6 {[%clk 0:02:59]} 3. g3 {[%clk 0:02:54]}  Bg7 {[%clk 0:02:59]} 4. Bg2 {[%clk 0:02:53]}  O-O {[%clk 0:02:59]} 5. Nf3 {[%clk 0:02:53]}  d5 {[%clk 0:02:59]} 6. O-O {[%clk 0:02:52]}  dxc4 {[%clk 0:02:58]} 7. Qc2 {[%clk 0:02:47]}  Nc6 {[%clk 0:02:49]} 8. Qxc4 {[%clk 0:02:43]}  Be6 {[%clk 0:02:47]} 9. Qb5 {[%clk 0:02:38]}  Nxd4 {[%clk 0:02:39]} 10. Nxd4 {[%clk 0:02:34]}  Qxd4 {[%clk 0:02:39]} 11. Be3 {[%clk 0:02:34]}  Qc4 {[%clk 0:02:31]} 12. Qxc4 {[%clk 0:02:29]}  Bxc4 {[%clk 0:02:29]} 13. Nc3 {[%clk 0:02:26]}  c6 {[%clk 0:02:26]} 14. Rac1 {[%clk 0:02:22]}  Be6 {[%clk 0:02:25]} 15. Na4 {[%clk 0:02:20]}  Bxa2 {[%clk 0:02:22]} 16. Bc5 {[%clk 0:02:17]}  Rfe8 {[%clk 0:02:20]} 17. Rfd1 {[%clk 0:02:17]}  Bd5 {[%clk 0:02:19]} 18. Bxd5 {[%clk 0:02:16]}  Nxd5 {[%clk 0:02:19]} 19. e4 {[%clk 0:02:16]}  Nf6 {[%clk 0:02:14]} 20. f3 {[%clk 0:02:16]}  e6 {[%clk 0:02:11]} 21. Bb4 {[%clk 0:02:13]}  Rad8 {[%clk 0:02:08]} 22. g4 {[%clk 0:02:04]}  h6 {[%clk 0:02:07]} 23. h4 {[%clk 0:02:03]}  Nd7 {[%clk 0:02:02]} 24. Ba5 {[%clk 0:01:59]}  b6 {[%clk 0:02:01]} 25. Rxc6 {[%clk 0:01:58]}  Ne5 {[%clk 0:01:57]} 26. Rxd8 {[%clk 0:01:49]}  Rxd8 {[%clk 0:01:56]} 27. Rc7 {[%clk 0:01:47]}  bxa5 {[%clk 0:01:54]} 28. Rxa7 {[%clk 0:01:47]}  Nxf3+ {[%clk 0:01:50]} 29. Kg2 {[%clk 0:01:45]}  Nd2 {[%clk 0:01:46]} 30. Rxa5 {[%clk 0:01:43]}  Nxe4 {[%clk 0:01:45]} 31. b4 {[%clk 0:01:40]}  Rd2+ {[%clk 0:01:43]} 32. Kf3 {[%clk 0:01:38]}  f5 {[%clk 0:01:42]} 33. Ra7 {[%clk 0:01:34]}  Be5 {[%clk 0:01:37]} 34. Nb6 {[%clk 0:01:31]}  Rd3+ {[%clk 0:01:28]} 35. Ke2 {[%clk 0:01:31]}  Rb3 {[%clk 0:01:26]} 36. Nd7 {[%clk 0:01:29]}  Bd4 {[%clk 0:01:23]} 37. Ra8+ {[%clk 0:01:28]}  Kf7 {[%clk 0:01:22]} 38. gxf5 {[%clk 0:01:26]}  gxf5 {[%clk 0:01:19]} 39. Rb8 {[%clk 0:01:26]}  Ke7 {[%clk 0:01:17]} 40. Nf8 {[%clk 0:01:24]}  Nd6 {[%clk 0:01:03]} 41. Ng6+ {[%clk 0:01:24]}  Kf6 {[%clk 0:01:02]} 42. Nf4 {[%clk 0:01:24]}  Ke5 {[%clk 0:00:59]} 43. Nd3+ {[%clk 0:01:23]}  Ke4 {[%clk 0:00:58]} 44. Nc1 {[%clk 0:01:22]}  Rb2+ {[%clk 0:00:57]} 45. Kd1 {[%clk 0:01:22]}  Nc4 {[%clk 0:00:55]} 46. Rc8 {[%clk 0:01:20]}  Ne3+ {[%clk 0:00:46]} 47. Ke1 {[%clk 0:01:20]}  Rxb4 {[%clk 0:00:43]} 48. Kd2 {[%clk 0:01:21]}  Rb2+ {[%clk 0:00:40]} 49. Ke1 {[%clk 0:01:20]}  Ng2+ {[%clk 0:00:39]} 50. Kf1 {[%clk 0:01:20]}  Nxh4 {[%clk 0:00:39]} 51. Rc4 {[%clk 0:01:10]}  Rf2+ {[%clk 0:00:37]} 52. Ke1 {[%clk 0:01:10]}  Nf3+ {[%clk 0:00:37]} 53. Kd1 {[%clk 0:01:10]}  Rd2# {[%clk 0:00:37]} 0-1


[Site "https://www.chess.com"]

[Event "Titled Tuesday Blitz April 11 Early 2023"]
[White "Inepton_Fermion"]
[Black "Aung Thant Zin"]
[BlackFideId "13000063"]
[WhiteElo "2379"]
[BlackElo "2278"]
[Result "0-1"]
[Round "09"]
[TimeControl "180+2"]
[Date "2023.04.11"]
[WhiteClock "0:00:04"]
[BlackClock "0:00:47"]

1. e4 {[%clk 0:03:00]}  c5 {[%clk 0:02:59]} 2. Nf3 {[%clk 0:03:01]}  Nc6 {[%clk 0:02:59]} 3. d4 {[%clk 0:03:01]}  cxd4 {[%clk 0:03:00]} 4. Nxd4 {[%clk 0:03:02]}  Nf6 {[%clk 0:03:00]} 5. Nc3 {[%clk 0:03:03]}  d6 {[%clk 0:03:01]} 6. Bg5 {[%clk 0:03:02]}  e6 {[%clk 0:03:01]} 7. Qd2 {[%clk 0:03:01]}  a6 {[%clk 0:03:01]} 8. O-O-O {[%clk 0:02:59]}  h6 {[%clk 0:03:00]} 9. Bh4 {[%clk 0:02:52]}  Nxe4 {[%clk 0:02:59]} 10. Nxe4 {[%clk 0:02:43]}  Qxh4 {[%clk 0:02:57]} 11. Nxc6 {[%clk 0:02:34]}  Qxe4 {[%clk 0:02:53]} 12. Nd4 {[%clk 0:02:33]}  Be7 {[%clk 0:02:43]} 13. Kb1 {[%clk 0:02:32]}  Bd7 {[%clk 0:02:32]} 14. Nb3 {[%clk 0:02:14]}  O-O {[%clk 0:02:21]} 15. Bd3 {[%clk 0:02:13]}  Qa4 {[%clk 0:02:17]} 16. h4 {[%clk 0:02:07]}  d5 {[%clk 0:02:11]} 17. g4 {[%clk 0:02:00]}  e5 {[%clk 0:02:03]} 18. f3 {[%clk 0:02:00]}  Rad8 {[%clk 0:01:59]} 19. g5 {[%clk 0:01:54]}  h5 {[%clk 0:01:57]} 20. g6 {[%clk 0:01:42]}  e4 {[%clk 0:01:52]} 21. fxe4 {[%clk 0:01:31]}  dxe4 {[%clk 0:01:52]} 22. gxf7+ {[%clk 0:01:32]}  Rxf7 {[%clk 0:01:52]} 23. Be2 {[%clk 0:01:28]}  Bg4 {[%clk 0:01:50]} 24. Qe3 {[%clk 0:01:13]}  Bxe2 {[%clk 0:01:42]} 25. Qxe2 {[%clk 0:01:09]}  Rxd1+ {[%clk 0:01:36]} 26. Rxd1 {[%clk 0:01:09]}  g6 {[%clk 0:01:32]} 27. Rg1 {[%clk 0:01:07]}  Kh7 {[%clk 0:01:30]} 28. Nd2 {[%clk 0:00:59]}  Qd4 {[%clk 0:01:25]} 29. Rd1 {[%clk 0:00:52]}  Rf2 {[%clk 0:01:16]} 30. Qxe4 {[%clk 0:00:37]}  Qd7 {[%clk 0:01:08]} 31. Re1 {[%clk 0:00:28]}  Bf6 {[%clk 0:01:02]} 32. Nf3 {[%clk 0:00:13]}  Qc6 {[%clk 0:00:55]} 33. Qxc6 {[%clk 0:00:11]}  bxc6 {[%clk 0:00:56]} 34. Ng5+ {[%clk 0:00:09]}  Kg7 {[%clk 0:00:47]} 35. a4 {[%clk 0:00:07]}  Bxg5 {[%clk 0:00:46]} 36. hxg5 {[%clk 0:00:07]}  Rf5 {[%clk 0:00:46]} 37. Re7+ {[%clk 0:00:06]}  Kf8 {[%clk 0:00:46]} 38. Re6 {[%clk 0:00:06]}  Rxg5 {[%clk 0:00:46]} 39. Rxc6 {[%clk 0:00:06]}  h4 {[%clk 0:00:47]} 40. Rxa6 {[%clk 0:00:06]}  h3 {[%clk 0:00:47]} 41. Ra8+ {[%clk 0:00:05]}  Kg7 {[%clk 0:00:47]} 42. Ra7+ {[%clk 0:00:06]}  Kf6 {[%clk 0:00:47]} 43. Rh7 {[%clk 0:00:01]}  Rh5 {[%clk 0:00:47]} 44. Rd7 {[%clk 0:00:02]}  h2 {[%clk 0:00:47]} 45. Rd1 {[%clk 0:00:03]}  h1=Q {[%clk 0:00:47]} 46. Rxh1 {[%clk 0:00:03]}  Rxh1+ {[%clk 0:00:47]} 47. Ka2 {[%clk 0:00:04]}  g5 {[%clk 0:00:46]} 48. a5 {[%clk 0:00:04]}  g4 {[%clk 0:00:46]} 49. a6 {[%clk 0:00:04]}  g3 {[%clk 0:00:46]} 50. a7 {[%clk 0:00:04]}  Rh8 {[%clk 0:00:47]} 0-1


[Site "https://www.chess.com"]

[Event "Titled Tuesday Blitz April 11 Early 2023"]
[White "MANOJ_MISHRA123"]
[Black "Balint, Vilmos"]
[BlackFideId "718050"]
[WhiteElo "2124"]
[BlackElo "2034"]
[Result "0-1"]
[Round "09"]
[TimeControl "180+2"]
[Date "2023.04.11"]
[WhiteClock "0:00:07"]
[BlackClock "0:01:45"]

1. d4 {[%clk 0:02:57]}  Nf6 {[%clk 0:02:47]} 2. Bg5 {[%clk 0:02:56]}  d5 {[%clk 0:02:47]} 3. e3 {[%clk 0:02:55]}  e6 {[%clk 0:02:46]} 4. Bd3 {[%clk 0:02:52]}  Nbd7 {[%clk 0:02:47]} 5. f4 {[%clk 0:02:45]}  c5 {[%clk 0:02:47]} 6. c3 {[%clk 0:02:45]}  b6 {[%clk 0:02:44]} 7. Nf3 {[%clk 0:02:43]}  h6 {[%clk 0:02:44]} 8. Bh4 {[%clk 0:02:42]}  Be7 {[%clk 0:02:44]} 9. Nbd2 {[%clk 0:02:37]}  Bb7 {[%clk 0:02:44]} 10. Ne5 {[%clk 0:02:37]}  O-O {[%clk 0:02:43]} 11. Qf3 {[%clk 0:02:23]}  Ne8 {[%clk 0:02:43]} 12. Bxe7 {[%clk 0:02:21]}  Qxe7 {[%clk 0:02:43]} 13. O-O {[%clk 0:02:18]}  Rc8 {[%clk 0:02:43]} 14. Qh3 {[%clk 0:01:47]}  Nd6 {[%clk 0:02:41]} 15. Qf3 {[%clk 0:01:22]}  Nf6 {[%clk 0:02:31]} 16. g4 {[%clk 0:01:16]}  Nfe4 {[%clk 0:02:22]} 17. Rad1 {[%clk 0:01:04]}  Qh4 {[%clk 0:02:19]} 18. Bxe4 {[%clk 0:00:55]}  dxe4 {[%clk 0:02:18]} 19. Qf2 {[%clk 0:00:49]}  Qxf2+ {[%clk 0:02:15]} 20. Kxf2 {[%clk 0:00:48]}  Ba6 {[%clk 0:02:14]} 21. Rg1 {[%clk 0:00:39]}  f6 {[%clk 0:02:13]} 22. Ng6 {[%clk 0:00:37]}  Rfd8 {[%clk 0:02:13]} 23. Ne7+ {[%clk 0:00:35]}  Kf7 {[%clk 0:02:12]} 24. Nxc8 {[%clk 0:00:35]}  Nxc8 {[%clk 0:02:12]} 25. Nxe4 {[%clk 0:00:33]}  c4 {[%clk 0:02:09]} 26. g5 {[%clk 0:00:30]}  hxg5 {[%clk 0:02:08]} 27. fxg5 {[%clk 0:00:30]}  Bb7 {[%clk 0:02:07]} 28. Nd2 {[%clk 0:00:23]}  f5 {[%clk 0:02:06]} 29. Nxc4 {[%clk 0:00:23]}  Rh8 {[%clk 0:02:03]} 30. Ne5+ {[%clk 0:00:20]}  Ke8 {[%clk 0:02:04]} 31. Kg3 {[%clk 0:00:19]}  Be4 {[%clk 0:02:03]} 32. h4 {[%clk 0:00:19]}  Nd6 {[%clk 0:02:03]} 33. Rdf1 {[%clk 0:00:18]}  Nb5 {[%clk 0:01:59]} 34. Ng6 {[%clk 0:00:18]}  Rh7 {[%clk 0:01:56]} 35. a4 {[%clk 0:00:17]}  Nc7 {[%clk 0:01:56]} 36. Ra1 {[%clk 0:00:15]}  Nd5 {[%clk 0:01:56]} 37. a5 {[%clk 0:00:15]}  Nxe3 {[%clk 0:01:56]} 38. axb6 {[%clk 0:00:15]}  axb6 {[%clk 0:01:56]} 39. Ra8+ {[%clk 0:00:15]}  Bxa8 {[%clk 0:01:56]} 40. Ra1 {[%clk 0:00:13]}  Bd5 {[%clk 0:01:55]} 41. Ra7 {[%clk 0:00:13]}  Nc4 {[%clk 0:01:46]} 42. Kf4 {[%clk 0:00:11]}  Nxb2 {[%clk 0:01:46]} 43. Ke5 {[%clk 0:00:11]}  Kd8 {[%clk 0:01:42]} 44. Rf7 {[%clk 0:00:05]}  Nc4+ {[%clk 0:01:42]} 45. Kf4 {[%clk 0:00:05]}  e5+ {[%clk 0:01:42]} 46. dxe5 {[%clk 0:00:05]}  Bxf7 {[%clk 0:01:42]} 47. Kxf5 {[%clk 0:00:04]}  Bxg6+ {[%clk 0:01:42]} 48. Kxg6 {[%clk 0:00:05]}  Rxh4 {[%clk 0:01:42]} 49. Kxg7 {[%clk 0:00:05]}  Nxe5 {[%clk 0:01:43]} 50. Kf6 {[%clk 0:00:05]}  Nd7+ {[%clk 0:01:41]} 51. Kf7 {[%clk 0:00:04]}  Rc4 {[%clk 0:01:41]} 52. g6 {[%clk 0:00:04]}  Ne5+ {[%clk 0:01:42]} 53. Kf6 {[%clk 0:00:04]}  Nxg6 {[%clk 0:01:43]} 54. Kxg6 {[%clk 0:00:04]}  Rxc3 {[%clk 0:01:44]} 55. Kf5 {[%clk 0:00:05]}  Rc8 {[%clk 0:01:44]} 56. Ke5 {[%clk 0:00:06]}  b5 {[%clk 0:01:45]} 57. Kd4 {[%clk 0:00:07]}  b4 {[%clk 0:01:45]} 0-1


[Site "https://www.chess.com"]

[Event "Titled Tuesday Blitz April 11 Early 2023"]
[White "Baches Garcia, Guillermo"]
[Black "Jarocka, Liwia"]
[WhiteFideId "2209764"]
[BlackFideId "21807558"]
[WhiteElo "2439"]
[BlackElo "2013"]
[Result "1-0"]
[Round "09"]
[TimeControl "180+2"]
[Date "2023.04.11"]
[WhiteClock "0:00:08"]
[BlackClock "0:00:02"]

1. e4 {[%clk 0:03:00]}  c5 {[%clk 0:02:58]} 2. Nf3 {[%clk 0:03:01]}  Nc6 {[%clk 0:02:57]} 3. d4 {[%clk 0:03:01]}  cxd4 {[%clk 0:02:57]} 4. Nxd4 {[%clk 0:03:02]}  Nf6 {[%clk 0:02:57]} 5. Nc3 {[%clk 0:03:02]}  e6 {[%clk 0:02:58]} 6. Nxc6 {[%clk 0:03:02]}  bxc6 {[%clk 0:02:59]} 7. e5 {[%clk 0:03:02]}  Nd5 {[%clk 0:02:58]} 8. Ne4 {[%clk 0:03:02]}  Qc7 {[%clk 0:02:55]} 9. f4 {[%clk 0:03:02]}  Qb6 {[%clk 0:02:55]} 10. c4 {[%clk 0:02:57]}  Bb4+ {[%clk 0:02:49]} 11. Ke2 {[%clk 0:02:57]}  Ba6 {[%clk 0:02:47]} 12. Kf3 {[%clk 0:02:50]}  Ne7 {[%clk 0:02:42]} 13. Be3 {[%clk 0:02:42]}  c5 {[%clk 0:01:56]} 14. a3 {[%clk 0:02:37]}  Bb7 {[%clk 0:01:34]} 15. axb4 {[%clk 0:02:23]}  Qxb4 {[%clk 0:01:13]} 16. Qd2 {[%clk 0:02:02]}  f5 {[%clk 0:00:55]} 17. exf6 {[%clk 0:01:55]}  gxf6 {[%clk 0:00:55]} 18. Qxb4 {[%clk 0:01:24]}  cxb4 {[%clk 0:00:55]} 19. Rxa7 {[%clk 0:01:07]}  Rxa7 {[%clk 0:00:54]} 20. Bxa7 {[%clk 0:01:07]}  f5 {[%clk 0:00:53]} 21. Bd3 {[%clk 0:01:07]}  Rg8 {[%clk 0:00:49]} 22. g3 {[%clk 0:01:03]}  fxe4+ {[%clk 0:00:46]} 23. Bxe4 {[%clk 0:01:03]}  Bxe4+ {[%clk 0:00:45]} 24. Kxe4 {[%clk 0:01:03]}  Nc6 {[%clk 0:00:45]} 25. Be3 {[%clk 0:01:01]}  h5 {[%clk 0:00:40]} 26. Ra1 {[%clk 0:00:58]}  Kf7 {[%clk 0:00:36]} 27. Bf2 {[%clk 0:00:51]}  Rb8 {[%clk 0:00:35]} 28. b3 {[%clk 0:00:50]}  Rd8 {[%clk 0:00:29]} 29. Ra6 {[%clk 0:00:43]}  Ne7 {[%clk 0:00:25]} 30. Bb6 {[%clk 0:00:36]}  Rc8 {[%clk 0:00:23]} 31. Bd4 {[%clk 0:00:31]}  Nc6 {[%clk 0:00:22]} 32. Be3 {[%clk 0:00:29]}  Rg8 {[%clk 0:00:22]} 33. Rb6 {[%clk 0:00:27]}  h4 {[%clk 0:00:21]} 34. Bf2 {[%clk 0:00:27]}  hxg3 {[%clk 0:00:21]} 35. hxg3 {[%clk 0:00:27]}  Rg4 {[%clk 0:00:20]} 36. Rb7 {[%clk 0:00:24]}  Ke8 {[%clk 0:00:19]} 37. Kf3 {[%clk 0:00:23]}  Rg8 {[%clk 0:00:17]} 38. Bc5 {[%clk 0:00:22]}  Rh8 {[%clk 0:00:13]} 39. Bxb4 {[%clk 0:00:21]}  Rh1 {[%clk 0:00:12]} 40. Bd6 {[%clk 0:00:20]}  Rb1 {[%clk 0:00:11]} 41. b4 {[%clk 0:00:20]}  Rb3+ {[%clk 0:00:10]} 42. Kg4 {[%clk 0:00:19]}  Nd4 {[%clk 0:00:10]} 43. b5 {[%clk 0:00:17]}  Nf5 {[%clk 0:00:09]} 44. Be5 {[%clk 0:00:09]}  Rxg3+ {[%clk 0:00:08]} 45. Kh5 {[%clk 0:00:10]}  Rh3+ {[%clk 0:00:07]} 46. Kg4 {[%clk 0:00:09]}  Rg3+ {[%clk 0:00:07]} 47. Kh5 {[%clk 0:00:09]}  Rh3+ {[%clk 0:00:08]} 48. Kg6 {[%clk 0:00:10]}  Rh6+ {[%clk 0:00:07]} 49. Kg5 {[%clk 0:00:09]}  Rh1 {[%clk 0:00:05]} 50. b6 {[%clk 0:00:09]}  Rg1+ {[%clk 0:00:06]} 51. Kf6 {[%clk 0:00:09]}  d6 {[%clk 0:00:04]} 52. Kxe6 {[%clk 0:00:08]}  dxe5 {[%clk 0:00:02]} 53. Rb8# {[%clk 0:00:08]} 1-0


[Site "https://www.chess.com"]

[Event "Titled Tuesday Blitz April 11 Early 2023"]
[White "Andrews, Todd"]
[Black "Halldorsson, Halldor"]
[WhiteFideId "2012456"]
[BlackFideId "2301369"]
[WhiteElo "2333"]
[BlackElo "2190"]
[Result "1-0"]
[Round "09"]
[TimeControl "180+2"]
[Date "2023.04.11"]
[WhiteClock "0:01:57"]
[BlackClock "0:02:26"]

1. e4 {[%clk 0:03:00]}  c5 {[%clk 0:02:59]} 2. Nf3 {[%clk 0:03:00]}  d6 {[%clk 0:02:59]} 3. d4 {[%clk 0:03:01]}  cxd4 {[%clk 0:03:00]} 4. Nxd4 {[%clk 0:03:01]}  Nf6 {[%clk 0:03:00]} 5. Nc3 {[%clk 0:03:02]}  a6 {[%clk 0:03:01]} 6. Bc4 {[%clk 0:03:02]}  b5 {[%clk 0:03:00]} 7. Bb3 {[%clk 0:03:03]}  e6 {[%clk 0:03:00]} 8. Be3 {[%clk 0:03:02]}  b4 {[%clk 0:03:00]} 9. Na4 {[%clk 0:03:02]}  Bd7 {[%clk 0:03:00]} 10. a3 {[%clk 0:02:37]}  Nc6 {[%clk 0:02:58]} 11. axb4 {[%clk 0:02:29]}  Nxd4 {[%clk 0:02:57]} 12. Qxd4 {[%clk 0:02:26]}  Rb8 {[%clk 0:02:47]} 13. O-O {[%clk 0:02:19]}  Bc6 {[%clk 0:02:45]} 14. Nc3 {[%clk 0:02:14]}  Qc8 {[%clk 0:02:34]} 15. f4 {[%clk 0:02:03]}  Be7 {[%clk 0:02:33]} 16. e5 {[%clk 0:02:03]}  dxe5 {[%clk 0:02:26]} 17. fxe5 {[%clk 0:02:04]}  Nd5 {[%clk 0:02:25]} 18. Nxd5 {[%clk 0:02:01]}  Bxd5 {[%clk 0:02:26]} 19. Bxd5 {[%clk 0:01:59]}  exd5 {[%clk 0:02:27]} 20. Qxd5 {[%clk 0:01:58]}  Rxb4 {[%clk 0:02:26]} 21. Qxf7+ {[%clk 0:01:57]} 1-0


[Site "https://www.chess.com"]

[Event "Titled Tuesday Blitz April 11 Early 2023"]
[White "Tarasova, Viktoriya"]
[Black "Biriukov, Ilja"]
[WhiteFideId "4175840"]
[BlackFideId "4113373"]
[WhiteElo "2182"]
[BlackElo "2426"]
[Result "1/2-1/2"]
[Round "09"]
[TimeControl "180+2"]
[Date "2023.04.11"]
[WhiteClock "0:00:43"]
[BlackClock "0:01:01"]

1. d4 {[%clk 0:03:00]}  Nf6 {[%clk 0:02:58]} 2. c4 {[%clk 0:03:01]}  g6 {[%clk 0:02:58]} 3. Nc3 {[%clk 0:03:01]}  Bg7 {[%clk 0:02:59]} 4. e4 {[%clk 0:03:02]}  d6 {[%clk 0:02:59]} 5. h3 {[%clk 0:03:02]}  O-O {[%clk 0:02:59]} 6. Be3 {[%clk 0:03:03]}  Nbd7 {[%clk 0:02:58]} 7. Be2 {[%clk 0:03:01]}  e5 {[%clk 0:02:57]} 8. d5 {[%clk 0:03:01]}  a5 {[%clk 0:02:56]} 9. g4 {[%clk 0:03:01]}  Nc5 {[%clk 0:02:55]} 10. Qc2 {[%clk 0:03:01]}  b6 {[%clk 0:02:51]} 11. O-O-O {[%clk 0:02:59]}  Ne8 {[%clk 0:02:44]} 12. f3 {[%clk 0:02:56]}  f5 {[%clk 0:02:39]} 13. gxf5 {[%clk 0:02:56]}  gxf5 {[%clk 0:02:39]} 14. h4 {[%clk 0:02:56]}  f4 {[%clk 0:02:38]} 15. Bf2 {[%clk 0:02:56]}  Kh8 {[%clk 0:02:37]} 16. Bf1 {[%clk 0:02:48]}  Bd7 {[%clk 0:02:34]} 17. Bh3 {[%clk 0:02:48]}  Rg8 {[%clk 0:02:27]} 18. Bxd7 {[%clk 0:02:38]}  Qxd7 {[%clk 0:02:25]} 19. Nge2 {[%clk 0:02:30]}  Bf6 {[%clk 0:02:23]} 20. Rdg1 {[%clk 0:02:28]}  Qe7 {[%clk 0:02:14]} 21. Rxg8+ {[%clk 0:02:25]}  Kxg8 {[%clk 0:02:13]} 22. Kd2 {[%clk 0:02:08]}  Kh8 {[%clk 0:02:11]} 23. Nc1 {[%clk 0:02:06]}  Ng7 {[%clk 0:02:01]} 24. h5 {[%clk 0:02:02]}  Rg8 {[%clk 0:01:59]} 25. Qd1 {[%clk 0:01:58]}  Ne8 {[%clk 0:01:59]} 26. Qf1 {[%clk 0:01:58]}  Bg5 {[%clk 0:01:52]} 27. Nd3 {[%clk 0:01:54]}  Nf6 {[%clk 0:01:42]} 28. Nxc5 {[%clk 0:01:49]}  dxc5 {[%clk 0:01:36]} 29. Qh3 {[%clk 0:01:44]}  Ne8 {[%clk 0:01:34]} 30. Rg1 {[%clk 0:01:12]}  Nd6 {[%clk 0:01:33]} 31. b3 {[%clk 0:01:12]}  Bf6 {[%clk 0:01:24]} 32. Rxg8+ {[%clk 0:01:11]}  Kxg8 {[%clk 0:01:24]} 33. a4 {[%clk 0:01:04]}  Kf7 {[%clk 0:01:16]} 34. Ke2 {[%clk 0:01:03]}  Ke8 {[%clk 0:01:13]} 35. Nb5 {[%clk 0:00:57]}  Nxb5 {[%clk 0:01:04]} 36. axb5 {[%clk 0:00:54]}  Qd7 {[%clk 0:01:03]} 37. Qg2 {[%clk 0:00:54]}  Qg7 {[%clk 0:01:02]} 38. Qh3 {[%clk 0:00:43]}  Qd7 {[%clk 0:01:02]} 39. Qg2 {[%clk 0:00:43]}  Qg7 {[%clk 0:01:01]} 40. Qh3 {[%clk 0:00:43]}  Qd7 {[%clk 0:01:01]} 1/2-1/2


[Site "https://www.chess.com"]